fUST/lending_fUST_20250602
["ID","MTS","AMOUNT","RATE_DAILY","PERIOD"]
[363760123,1748863839040,-394.04398,0.0001714,2]
[363760124,1748863839050,-430.0,0.0001714,2]
[363760125,1748863839060,-430.0,0.0001714,2]
[363760126,1748863839070,-430.0,0.0001714,2]
[363760127,1748863839081,-430.0,0.0001714,2]
[363760128,1748863839092,-430.0,0.0001714,2]
[363760129,1748863839102,-430.0,0.0001714,2]
[363760130,1748863839112,-430.0,0.0001714,2]
[363760131,1748863839122,-430.0,0.0001714,2]
[363760132,1748863839131,-336.82939588,0.0001714,2]
[363760133,1748863839141,-368.4299109,0.0001714,2]
[363760134,1748863839151,-430.0,0.0001714,2]
[363760136,1748863839160,-430.0,0.0001714,2]
[363760137,1748863839169,-430.0,0.0001714,2]
[363760139,1748863839178,-1553.33,0.0001714,2]
[363760141,1748863839188,-430.0,0.0001714,2]
[363760143,1748863839198,-430.0,0.0001714,2]
[363760145,1748863839208,-430.0,0.0001714,2]
[363760147,1748863839218,-162.97156676,0.0001714,2]
[363760150,1748863839228,-676.42,0.0001714,2]
[363760151,1748863839238,-430.0,0.0001714,2]
[363760153,1748863839252,-430.0,0.0001714,2]
[363760155,1748863839262,-491.06,0.0001714,2]
[363760157,1748863839272,-430.0,0.0001714,2]
[363760159,1748863839283,-692.15,0.0001714,2]
[363760162,1748863839293,-477.72,0.0001714,2]
[363760164,1748863839303,-430.0,0.0001714,2]
[363760166,1748863839314,-1463.25,0.0001714,2]
[363760167,1748863839327,-430.0,0.0001714,2]
[363760170,1748863839338,-430.0,0.0001714,2]
[363760172,1748863839347,-430.0,0.0001714,2]
[363760174,1748863839357,-611.52,0.0001714,2]
[363760176,1748863839366,-3822.18,0.0001714,2]
[363760178,1748863839376,-445.17489845,0.00017141,2]
[363760180,1748863839386,-441.45913133,0.00017141,2]
[363760181,1748863839395,-440.00941845,0.00017141,2]
[363760183,1748863839404,-439.39217923,0.00017141,2]
[363760185,1748863839414,-430.0,0.00017141,2]
[363760187,1748863839424,-455.28,0.00017141,2]
[363760189,1748863839434,-167.53287648,0.00017141,2]
[363760191,1748863839445,-236.62709331,0.00017141,2]
[363760193,1748863839455,-551.53,0.00017141,2]
[363760195,1748863839464,-255.44548044,0.00017141,2]
[363760197,1748863839474,-430.0,0.00017141,2]
[363760199,1748863839484,-500.0,0.00017141,2]
[363760201,1748863839494,-500.0,0.00017141,2]
[363760203,1748863839504,-579.6233432,0.00017141,2]
[363760205,1748863839513,-488.85,0.00017413,2]
[363760207,1748863839523,-578.34,0.00017413,2]
[363760209,1748863839533,-430.0,0.00017413,2]
[363760211,1748863839542,-762.41,0.00017413,2]
[363760213,1748863839552,-430.0,0.00017413,2]
[363760216,1748863839562,-592.12,0.00017413,2]
[363760218,1748863839572,-430.0,0.00017413,2]
[363760219,1748863839585,-2995.47,0.00017413,2]
[363760221,1748863839595,-1547.43,0.00017413,2]
[363760224,1748863839605,-1137.03,0.00017413,2]
[363760225,1748863839614,-509.85,0.00017413,2]
[363760227,1748863839624,-1121.13,0.00017413,2]
[363760229,1748863839634,-1737.15,0.00017413,2]
[363760232,1748863839644,-211.83135684,0.00017414,2]
[363760234,1748863839654,-430.0,0.00017414,2]
[363760236,1748863839663,-452.75544499,0.00017414,2]
[363760238,1748863839672,-439.340788,0.00017414,2]
[363760240,1748863839681,-430.0,0.00017414,2]
[363760241,1748863839690,-430.0,0.00017414,2]
[363760243,1748863839700,-430.0,0.00017414,2]
[363760245,1748863839710,-430.0,0.00017414,2]
[363760248,1748863839719,-1553.33,0.00017414,2]
[363760251,1748863839730,-430.0,0.00017414,2]
[363760253,1748863839739,-430.0,0.00017414,2]
[363760255,1748863839748,-676.42,0.00017414,2]
[363760257,1748863839757,-430.0,0.00017414,2]
[363760259,1748863839766,-491.06,0.00017414,2]
[363760262,1748863839776,-430.0,0.00017414,2]
[363760264,1748863839786,-692.15,0.00017414,2]
[363760266,1748863839795,-477.72,0.00017414,2]
[363760268,1748863839804,-430.0,0.00017414,2]
[363760270,1748863839814,-1463.25,0.00017414,2]
[363760272,1748863839825,-430.0,0.00017414,2]
[363760274,1748863839835,-447.99541671,0.00017414,2]
[363760276,1748863839844,-611.52,0.00017414,2]
[363760278,1748863839853,-3822.18,0.00017414,2]
[363760280,1748863839863,-447.1189379,0.00017415,2]
[363760282,1748863839872,-551.53,0.00017415,2]
[363760284,1748863839882,-1000.0,0.0001746,2]
[363760286,1748863839891,-502.39560964,0.00017474,2]
[363760288,1748863839901,-792.94463082,0.0001755,2]
[363760290,1748863839910,-823.70524808,0.000176,2]
[363760292,1748863839921,-488.85,0.00017687,2]
[363760294,1748863839932,-578.34,0.00017687,2]
[363760296,1748863839942,-430.0,0.00017687,2]
[363760298,1748863839952,-762.41,0.00017687,2]
[363760300,1748863839962,-430.0,0.00017687,2]
[363760301,1748863839971,-592.12,0.00017687,2]
[363760304,1748863839981,-430.0,0.00017687,2]
[363760305,1748863839991,-2995.47,0.00017687,2]
[363760307,1748863840000,-1547.43,0.00017687,2]
[363760309,1748863840010,-1137.03,0.00017687,2]
[363760311,1748863840020,-509.85,0.00017687,2]
[363760314,1748863840030,-1121.13,0.00017687,2]
[363760315,1748863840039,-1737.15,0.00017687,2]
[363760317,1748863840048,-297.31337355,0.00017688,2]
[363760319,1748863840058,-440.76,0.00017688,2]
[363760321,1748863840067,-430.0,0.00017688,2]
[363760323,1748863840078,-430.0,0.00017688,2]
[363760325,1748863840088,-1553.33,0.00017688,2]
[363760328,1748863840098,-430.0,0.00017688,2]
[363760329,1748863840108,-430.0,0.00017688,2]
[363760331,1748863840118,-676.42,0.00017688,2]
[363760333,1748863840127,-430.0,0.00017688,2]
[363760335,1748863840137,-491.06,0.00017688,2]
[363760337,1748863840148,-430.0,0.00017688,2]
[363760339,1748863840157,-692.15,0.00017688,2]
[363760341,1748863840167,-477.72,0.00017688,2]
[363760343,1748863840176,-430.0,0.00017688,2]
[363760345,1748863840187,-1463.25,0.00017688,2]
[363760347,1748863840197,-430.0,0.00017688,2]
[363760349,1748863840206,-611.52,0.00017688,2]
[363760351,1748863840216,-3822.18,0.00017688,2]
[363760353,1748863840225,-551.53,0.00017689,2]
[363760355,1748863840235,-1000.0,0.00017689,2]
[363760357,1748863840249,-151.0,0.000177,2]
[363760359,1748863840258,-1635.59,0.00017781,2]
[363760362,1748863840268,-1700.0,0.00017937,2]
[363760363,1748863840277,-488.85,0.00017961,2]
[363760365,1748863840288,-578.34,0.00017961,2]
[363760368,1748863840299,-430.0,0.00017961,2]
[363760369,1748863840309,-762.41,0.00017961,2]
[363760371,1748863840318,-430.0,0.00017961,2]
[363760373,1748863840331,-592.12,0.00017961,2]
[363760375,1748863840340,-430.0,0.00017961,2]
[363760377,1748863840349,-2995.47,0.00017961,2]
[363760379,1748863840359,-1547.43,0.00017961,2]
[363760381,1748863840368,-1137.03,0.00017961,2]
[363760383,1748863840377,-509.85,0.00017961,2]
[363760385,1748863840387,-1121.13,0.00017961,2]
[363760387,1748863840396,-1737.15,0.00017961,2]
[363760389,1748863840406,-430.0,0.00017962,2]
[363760391,1748863840415,-557.57,0.00017962,2]
[363760393,1748863840425,-1553.33,0.00017962,2]
[363760395,1748863840435,-430.0,0.00017962,2]
[363760397,1748863840444,-430.0,0.00017962,2]
[363760399,1748863840454,-676.42,0.00017962,2]
[363760401,1748863840464,-430.0,0.00017962,2]
[363760403,1748863840474,-491.06,0.00017962,2]
[363760405,1748863840484,-430.0,0.00017962,2]
[363760407,1748863840493,-692.15,0.00017962,2]
[363760409,1748863840503,-477.72,0.00017962,2]
[363760411,1748863840514,-346.72314585,0.00017962,2]
[363760413,1748863840524,-1463.25,0.00017962,2]
[363760415,1748863840534,-430.0,0.00017962,2]
[363760417,1748863840544,-611.52,0.00017962,2]
[363760419,1748863840555,-3822.18,0.00017962,2]
[363760421,1748863840574,-551.53,0.00017963,2]
[363760424,1748863840585,-207.4,0.00017995,2]
[363760427,1748863840606,-151.47158686,0.00017995,2]
[363760443,1748863840756,-500.0,0.00017995,2]
[363760445,1748863840768,-1500.0,0.00017995,2]
[363760447,1748863840777,-500.0,0.00017995,2]
[363760449,1748863840787,-1500.0,0.00017995,2]
[363760451,1748863840796,-500.0,0.00017995,2]
[363760453,1748863840805,-1500.0,0.00017995,2]
[363760455,1748863840814,-500.0,0.00017995,2]
[363760457,1748863840825,-1650.85449925,0.00017995,2]
[363760459,1748863840834,-5000.0,0.00017995,2]
[363760461,1748863840845,-155.0,0.00018,30]
[363760463,1748863840854,-2443.929871,0.00018082,2]
[363760465,1748863840864,-151.0,0.000181,2]
[363760467,1748863840874,-420.0,0.00018128,2]
[363760469,1748863840884,-240.0,0.00018128,2]
[363760471,1748863840894,-420.0,0.00018128,2]
[363760473,1748863840903,-160.0,0.00018188,2]
[363760475,1748863840913,-160.0,0.00018188,2]
[363760477,1748863840922,-160.0,0.00018188,2]
[363760479,1748863840932,-212.83419937,0.00018188,2]
[363760481,1748863840943,-314.91466509,0.00018191,2]
[363760483,1748863840952,-160.0,0.00018191,2]
[363760485,1748863840962,-229.39799938,0.00018191,2]
[363760487,1748863840972,-160.0,0.00018191,2]
[363760489,1748863840982,-12668.79298183,0.00018191,2]
[363760491,1748863840991,-160.0,0.00018191,2]
[363760493,1748863841001,-423.56953423,0.00018191,2]
[363760495,1748863841010,-842.5625,0.00018191,2]
[363760497,1748863841021,-160.0,0.00018191,2]
[363760499,1748863841031,-488.85,0.00018235,2]
[363760501,1748863841040,-578.34,0.00018235,2]
[363760503,1748863841050,-430.0,0.00018235,2]
[363760505,1748863841061,-762.41,0.00018235,2]
[363760507,1748863841070,-430.0,0.00018235,2]
[363760509,1748863841081,-592.12,0.00018235,2]
[363760512,1748863841092,-430.0,0.00018235,2]
[363760514,1748863841102,-2995.47,0.00018235,2]
[363760516,1748863841113,-1547.43,0.00018235,2]
[363760518,1748863841123,-1137.03,0.00018235,2]
[363760520,1748863841134,-509.85,0.00018235,2]
[363760522,1748863841144,-1121.13,0.00018235,2]
[363760524,1748863841154,-1737.15,0.00018235,2]
[363760527,1748863841169,-1553.33,0.00018236,2]
[363760529,1748863841180,-430.0,0.00018236,2]
[363760531,1748863841190,-430.0,0.00018236,2]
[363760532,1748863841200,-676.42,0.00018236,2]
[363760534,1748863841210,-430.0,0.00018236,2]
[363760536,1748863841220,-491.06,0.00018236,2]
[363760538,1748863841230,-430.0,0.00018236,2]
[363760540,1748863841240,-692.15,0.00018236,2]
[363760542,1748863841254,-477.72,0.00018236,2]
[363760544,1748863841264,-1463.25,0.00018236,2]
[363760546,1748863841274,-430.0,0.00018236,2]
[363760548,1748863841284,-611.52,0.00018236,2]
[363760550,1748863841294,-3822.18,0.00018236,2]
[363760552,1748863841304,-551.53,0.00018237,2]
[363760554,1748863841314,-1500.0,0.00018237,2]
[363760556,1748863841327,-792.94463082,0.00018333,2]
[363760558,1748863841336,-151.0,0.000185,2]
[363760560,1748863841346,-488.85,0.00018509,2]
[363760562,1748863841356,-578.34,0.00018509,2]
[363760564,1748863841367,-430.0,0.00018509,2]
[363760566,1748863841377,-762.41,0.00018509,2]
[363760568,1748863841387,-430.0,0.00018509,2]
[363760570,1748863841397,-592.12,0.00018509,2]
[363760572,1748863841407,-430.0,0.00018509,2]
[363760574,1748863841416,-2995.47,0.00018509,2]
[363760576,1748863841426,-1547.43,0.00018509,2]
[363760578,1748863841437,-1137.03,0.00018509,2]
[363760580,1748863841446,-509.85,0.00018509,2]
[363760582,1748863841456,-1121.13,0.00018509,2]
[363760584,1748863841466,-1737.15,0.00018509,2]
[363760586,1748863841477,-1553.33,0.0001851,2]
[363760588,1748863841486,-430.0,0.0001851,2]
[363760590,1748863841496,-430.0,0.0001851,2]
[363760592,1748863841506,-676.42,0.0001851,2]
[363760594,1748863841516,-430.0,0.0001851,2]
[363760596,1748863841526,-491.06,0.0001851,2]
[363760598,1748863841537,-430.0,0.0001851,2]
[363760600,1748863841547,-692.15,0.0001851,2]
[363760602,1748863841556,-477.72,0.0001851,2]
[363760604,1748863841566,-1463.25,0.0001851,2]
[363760606,1748863841577,-430.0,0.0001851,2]
[363760607,1748863841587,-611.52,0.0001851,2]
[363760608,1748863841597,-3822.18,0.0001851,2]
[363760609,1748863841607,-551.53,0.00018511,2]
[363760610,1748863841617,-2044.49,0.00018522,2]
[363760611,1748863841627,-5000.0,0.00018543,2]
[363760612,1748863841637,-151.0,0.000186,2]
[363760613,1748863841647,-488.85,0.00018783,2]
[363760614,1748863841657,-578.34,0.00018783,2]
[363760616,1748863841667,-430.0,0.00018783,2]
[363760618,1748863841677,-762.41,0.00018783,2]
[363760620,1748863841687,-430.0,0.00018783,2]
[363760622,1748863841696,-592.12,0.00018783,2]
[363760624,1748863841707,-430.0,0.00018783,2]
[363760627,1748863841719,-2995.47,0.00018783,2]
[363760628,1748863841729,-1547.43,0.00018783,2]
[363760630,1748863841739,-1137.03,0.00018783,2]
[363760633,1748863841749,-509.85,0.00018783,2]
[363760635,1748863841758,-1121.13,0.00018783,2]
[363760637,1748863841768,-1737.15,0.00018783,2]
[363760639,1748863841778,-1553.33,0.00018784,2]
[363760641,1748863841788,-430.0,0.00018784,2]
[363760643,1748863841797,-430.0,0.00018784,2]
[363760645,1748863841809,-676.42,0.00018784,2]
[363760647,1748863841818,-430.0,0.00018784,2]
[363760649,1748863841830,-491.06,0.00018784,2]
[363760651,1748863841840,-430.0,0.00018784,2]
[363760653,1748863841851,-692.15,0.00018784,2]
[363760655,1748863841861,-477.72,0.00018784,2]
[363760657,1748863841871,-1463.25,0.00018784,2]
[363760660,1748863841881,-430.0,0.00018784,2]
[363760662,1748863841891,-611.52,0.00018784,2]
[363760664,1748863841901,-3822.18,0.00018784,2]
[363760666,1748863841910,-551.53,0.00018785,2]
[363760668,1748863841920,-2000.0,0.00018785,2]
[363760670,1748863841930,-151.0,0.00018788,2]
[363760672,1748863841939,-151.0,0.000189,2]
[363760674,1748863841949,-151.0,0.00018935,2]
[363760676,1748863841959,-151.0,0.00019,2]
[363760678,1748863841969,-1700.0,0.00019033,2]
[363760680,1748863841979,-488.85,0.00019057,2]
[363760682,1748863841988,-578.34,0.00019057,2]
[363760684,1748863841998,-430.0,0.00019057,2]
[363760686,1748863842008,-762.41,0.00019057,2]
[363760688,1748863842018,-430.0,0.00019057,2]
[363760690,1748863842028,-592.12,0.00019057,2]
[363760692,1748863842038,-430.0,0.00019057,2]
[363760694,1748863842048,-2995.47,0.00019057,2]
[363760696,1748863842058,-1547.43,0.00019057,2]
[363760698,1748863842069,-1137.03,0.00019057,2]
[363760700,1748863842080,-509.85,0.00019057,2]
[363760702,1748863842090,-1121.13,0.00019057,2]
[363760704,1748863842100,-1737.15,0.00019057,2]
[363760706,1748863842110,-1553.33,0.00019058,2]
[363760708,1748863842121,-430.0,0.00019058,2]
[363760710,1748863842130,-387.09022875,0.00019058,2]
[363760712,1748863842140,-676.42,0.00019058,2]
[363760714,1748863842150,-430.0,0.00019058,2]
[363760716,1748863842160,-491.06,0.00019058,2]
[363760718,1748863842170,-430.0,0.00019058,2]
[363760720,1748863842179,-692.15,0.00019058,2]
[363760722,1748863842189,-477.72,0.00019058,2]
[363760724,1748863842199,-1463.25,0.00019058,2]
[363760726,1748863842211,-430.0,0.00019058,2]
[363760728,1748863842220,-611.52,0.00019058,2]
[363760730,1748863842230,-3822.18,0.00019058,2]
[363760732,1748863842244,-551.53,0.00019059,2]
[363760734,1748863842253,-5000.0,0.00019091,2]
[363760736,1748863842263,-792.94463082,0.00019117,2]
[363760738,1748863842273,-460.61382357,0.00019178,2]
[363760740,1748863842284,-500.0,0.00019178,2]
[363760742,1748863842294,-500.0,0.00019178,2]
[363760744,1748863842304,-276.114422,0.00019178,2]
[363760746,1748863842313,-500.0,0.00019178,2]
[363760748,1748863842324,-500.0,0.00019178,2]
[363760751,1748863842335,-500.0,0.00019178,2]
[363760753,1748863842345,-500.0,0.00019178,2]
[363760754,1748863842354,-500.0,0.00019178,2]
[363760755,1748863842364,-500.0,0.00019178,2]
[363760756,1748863842374,-500.0,0.00019178,2]
[363760757,1748863842383,-500.0,0.00019178,2]
[363760758,1748863842393,-151.0,0.00019178,2]
[363760759,1748863842401,-377.218635,0.00019178,2]
[363760760,1748863842410,-156.587,0.00019233,2]
[363760761,1748863842419,-2453.39,0.00019263,2]
[363760762,1748863842429,-162.380719,0.00019288,2]
[363760763,1748863842438,-151.0,0.000193,2]
[363760764,1748863842448,-151.0,0.000193,2]
[363760765,1748863842458,-151.0,0.00019329,2]
[363760766,1748863842468,-415.293797,0.00019329,2]
[363760767,1748863842478,-415.293797,0.00019329,2]
[363760768,1748863842488,-209.549809,0.00019329,2]
[363760769,1748863842497,-259.041881,0.00019329,2]
[363760770,1748863842507,-529.260902,0.00019329,2]
[363760771,1748863842516,-529.260902,0.00019329,2]
[363760772,1748863842526,-100000.0,0.00019329,2]
[363760773,1748863842535,-488.85,0.00019331,2]
[363760774,1748863842545,-578.34,0.00019331,2]
[363760775,1748863842556,-166.3034419,0.00019331,2]
[363760776,1748863842567,-762.41,0.00019331,2]
[363760778,1748863842577,-430.0,0.00019331,2]
[363760779,1748863842588,-592.12,0.00019331,2]
[363760780,1748863842599,-430.0,0.00019331,2]
[363760782,1748863842609,-2995.47,0.00019331,2]
[363760784,1748863842623,-1547.43,0.00019331,2]
[363760786,1748863842634,-1137.03,0.00019331,2]
[363760787,1748863842645,-509.85,0.00019331,2]
[363760788,1748863842654,-1121.13,0.00019331,2]
[363760789,1748863842664,-1737.15,0.00019331,2]
[363760790,1748863842674,-1553.33,0.00019332,2]
[363760792,1748863842684,-430.0,0.00019332,2]
[363760793,1748863842694,-676.42,0.00019332,2]
[363760794,1748863842704,-430.0,0.00019332,2]
[363760795,1748863842714,-491.06,0.00019332,2]
[363760796,1748863842734,-430.0,0.00019332,2]
[363760797,1748863842744,-692.15,0.00019332,2]
[363760798,1748863842754,-477.72,0.00019332,2]
[363760799,1748863842764,-1463.25,0.00019332,2]
[363760800,1748863842775,-430.0,0.00019332,2]
[363760801,1748863842785,-611.52,0.00019332,2]
[363760803,1748863842795,-3822.18,0.00019332,2]
[363760804,1748863842805,-1048.39645406,0.00019333,2]
[363760805,1748863842816,-551.53,0.00019333,2]
[363760806,1748863842826,-521.203,0.00019339,2]
[363760807,1748863842835,-173.12461627,0.00019339,2]
[363760808,1748863842846,-168.94265941,0.00019343,2]
[363760809,1748863842856,-215.0738,0.00019364,2]
[363760810,1748863842866,-1000.0,0.0001948,5]
[363760811,1748863842876,-112667.52729,0.00019499,2]
[363760812,1748863842886,-8739.29641174,0.000195,2]
[363760813,1748863842896,-41.37139856,0.00019556,2]
[363760814,1748863842918,-758.62860144,0.00019556,2]
[363760815,1748863842928,-800.0,0.00019557,2]
[363760816,1748863842939,-1705.390317,0.00019599,2]
[363760817,1748863842949,-151.0,0.000196,2]
[363760818,1748863842959,-488.85,0.00019605,2]
[363760819,1748863842969,-578.34,0.00019605,2]
[363760820,1748863842978,-762.41,0.00019605,2]
[363760821,1748863842989,-417.3676411,0.00019605,2]
[363760822,1748863842999,-338.01344046,0.00019605,2]
[363760830,1748863843323,-430.0,0.00016591,2]
[363760832,1748863843335,-430.0,0.00016865,2]
[363760834,1748863843345,-140.0,0.00017139,2]
[363760875,1748863857503,1000.0,0.00023956,120]
[363760876,1748863897786,2997285.56257454,0.00021918,60]
[363760877,1748863939255,252.77,0.0001599,2]
[363760878,1748864013074,248.18,0.00015705,2]
[363760880,1748864085802,243.67,0.00015557,2]
[363760881,1748864158818,283.84,0.00015505,2]
[363760882,1748864234227,278.68,0.00015457,2]
[363760883,1748864309914,68.94177089,0.00015487,2]
[363760884,1748864309941,241.84822911,0.00015487,2]
[363760948,1748864387613,-168.19204084,0.0001649,2]
[363760949,1748864387636,-300.0,0.00016588,2]
[363760950,1748864387657,-300.0,0.00016589,2]
[363760951,1748864387680,-300.0,0.00016589,2]
[363760952,1748864387701,-350.34277277,0.00016589,2]
[363760953,1748864387724,-430.0,0.00016589,2]
[363760954,1748864387746,-430.0,0.00016589,2]
[363760955,1748864387769,-430.0,0.00016589,2]
[363760956,1748864387791,-430.0,0.00016589,2]
[363760957,1748864387816,-504.92,0.00016589,2]
[363760958,1748864387838,-430.0,0.00016589,2]
[363760959,1748864387860,-430.0,0.00016589,2]
[363760960,1748864387882,-430.0,0.00016589,2]
[363760961,1748864387904,-430.0,0.00016589,2]
[363760962,1748864387927,-430.0,0.00016589,2]
[363760963,1748864387949,-430.0,0.00016589,2]
[363760964,1748864387973,-1147.29,0.00016589,2]
[363760965,1748864387997,-430.0,0.00016589,2]
[363760966,1748864388019,-430.0,0.00016589,2]
[363760967,1748864388047,-2363.94,0.00016589,2]
[363760968,1748864388070,-430.0,0.00016589,2]
[363760969,1748864388092,-430.0,0.00016589,2]
[363760970,1748864388117,-430.0,0.00016589,2]
[363760971,1748864388141,-430.0,0.00016589,2]
[363760972,1748864388164,-430.0,0.00016589,2]
[363760973,1748864388187,-430.0,0.00016589,2]
[363760974,1748864388214,-1462.89,0.00016589,2]
[363760975,1748864388241,-1059.57,0.00016589,2]
[363760976,1748864388267,-56.85518639,0.00016589,2]
[363760978,1748864463784,5524.6382504,0.00015634,2]
[363760980,1748864536030,158.704216,0.00013699,2]
[363761063,1748864770756,5000.0,0.00016,2]
[363761065,1748864792670,4903.69562028,0.00016,4]
[363761066,1748864792692,15828.88631579,0.00016,4]
[363761067,1748864792714,12677.90745987,0.00016,4]
[363761078,1748864973790,3150.97885592,0.00016,2]
[363761079,1748864973816,1849.02114408,0.00016,2]
[363761083,1748864989617,5000.0,0.00016,2]
[363761086,1748865015862,8979.86517171,0.00016,3]
[363761087,1748865015896,6901.32131354,0.00016,3]
[363761099,1748865032566,-5000.0,0.00016225,2]
[363761100,1748865032578,-168.19204084,0.00016389,2]
[363761101,1748865032588,-253.45635099,0.00016389,2]
[363761102,1748865032598,-859.81079602,0.00016423,2]
[363761103,1748865032608,-300.0,0.00016586,2]
[363761104,1748865032618,-300.0,0.00016586,2]
[363761105,1748865032627,-240.0,0.00016586,2]
[363761106,1748865032638,-300.0,0.00016587,2]
[363761107,1748865032647,-430.0,0.00016587,2]
[363761108,1748865032657,-430.0,0.00016587,2]
[363761109,1748865032670,-430.0,0.00016587,2]
[363761110,1748865032680,-430.0,0.00016587,2]
[363761111,1748865032690,-430.0,0.00016587,2]
[363761117,1748865032699,-905.15,0.00016587,2]
[363761120,1748865032858,-430.0,0.00016587,2]
[363761123,1748865032872,-430.0,0.00016587,2]
[363761125,1748865032883,-1698.06,0.00016587,2]
[363761127,1748865032893,-430.0,0.00016587,2]
[363761129,1748865032903,-430.0,0.00016587,2]
[363761131,1748865032914,-430.0,0.00016587,2]
[363761133,1748865032924,-430.0,0.00016587,2]
[363761136,1748865032935,-3628.97,0.00016587,2]
[363761138,1748865032945,-430.0,0.00016587,2]
[363761140,1748865032956,-430.0,0.00016587,2]
[363761142,1748865032966,-430.0,0.00016587,2]
[363761144,1748865032976,-2100.78,0.00016587,2]
[363761146,1748865032986,-155.0,0.00016587,2]
[363761148,1748865032997,-430.0,0.00016587,2]
[363761150,1748865033007,-667.26032893,0.00016588,2]
[363761152,1748865033017,-444.09693948,0.00016588,2]
[363761155,1748865033027,-430.0,0.00016588,2]
[363761157,1748865033038,-430.0,0.00016588,2]
[363761159,1748865033048,-567.22788869,0.00016588,2]
[363761161,1748865033060,-432.64371377,0.00016588,2]
[363761163,1748865033071,-430.0,0.00016588,2]
[363761165,1748865033083,-430.0,0.00016588,2]
[363761167,1748865033093,-430.0,0.00016588,2]
[363761169,1748865033104,-430.0,0.00016588,2]
[363761171,1748865033114,-500.0,0.00016588,2]
[363761173,1748865033125,-589.04826043,0.00016588,2]
[363761175,1748865033136,-436.67096407,0.00016588,2]
[363761177,1748865033146,-430.0,0.00016588,2]
[363761179,1748865033157,-430.0,0.00016588,2]
[363761181,1748865033167,-430.0,0.00016588,2]
[363761183,1748865033177,-430.0,0.00016588,2]
[363761185,1748865033188,-1418.93,0.00016588,2]
[363761187,1748865033198,-210.45124826,0.00016588,2]
[363761189,1748865033209,-430.0,0.00016588,2]
[363761191,1748865033220,-441.19447688,0.00016588,2]
[363761193,1748865033230,-520.0,0.00016588,2]
[363761195,1748865033240,-430.0,0.00016588,2]
[363761197,1748865033250,-430.0,0.00016588,2]
[363761199,1748865033261,-426.53693295,0.00016588,2]
[363761202,1748865033271,-1352.15,0.00016588,2]
[363761204,1748865033281,-430.0,0.00016588,2]
[363761206,1748865033292,-422.66987332,0.00016588,2]
[363761207,1748865033303,-430.0,0.00016588,2]
[363761210,1748865033314,-473.87377456,0.00016588,2]
[363761212,1748865033326,-437.63121481,0.00016588,2]
[363761214,1748865033336,-430.0,0.00016588,2]
[363761216,1748865033347,-150.54375324,0.00016588,2]
[363761218,1748865033358,-277.17908677,0.00016588,2]
[363761220,1748865033369,-556.03,0.00016588,2]
[363761222,1748865033379,-430.0,0.00016588,2]
[363761224,1748865033389,-430.0,0.00016588,2]
[363761226,1748865033399,-430.0,0.00016588,2]
[363761228,1748865033410,-430.0,0.00016588,2]
[363761230,1748865033420,-430.0,0.00016588,2]
[363761233,1748865033431,-437.60978903,0.00016588,2]
[363761235,1748865033443,-430.0,0.00016588,2]